Department Family,Entity,Date,Expense Type,Expense Area,Supplier,Transaction Number,Amount,Description
Ministry of justice,CAFCASS,24/05/2022,Rent,HQ,AY UK LTD re London & Continental Railway,1110100,"74,820.84",Manchester 7F Rent
Ministry of justice,CAFCASS,24/05/2022,Service Charge,HQ,AY UK LTD re London & Continental Railway,1110100,"20,866.86",Manchester 7F Serv Chg
Ministry of justice,CAFCASS,26/05/2022,Rent,HQ,AY UK LTD re London & Continental Railway,1110153,"35,241.90",Croydon Rent
Ministry of justice,CAFCASS,26/05/2022,Service Charge,HQ,AY UK LTD re London & Continental Railway,1110153,"13,636.78",Croydon Serv Chg
Ministry of justice,CAFCASS,20/05/2022,Rent,HQ,AY UK LTD re Sports C T t/a Avison Young,1109955,"157,151.50",Bloomsbury Rent
Ministry of justice,CAFCASS,20/05/2022,Service Charge,HQ,AY UK LTD re Sports C T t/a Avison Young,1109955,"60,357.73",Bloomsbury Serv Chg
Ministry of justice,CAFCASS,23/05/2022,Contact rechargeable,HQ,Action for Children,1109965,"41,400.00",Apr-22 Claim payment Separated Parent Information Programmes  course
Ministry of justice,CAFCASS,10/05/2022,System licence fees,HQ,Bytes Software Services Ltd,1109389,"41,264.30",Azure Costs
Ministry of justice,CAFCASS,17/05/2022,Partnership Commissioned CS,HQ,Child Action Northwest,1109712,"30,108.75",Improving Child and Family Arrangements  CANW North April 2022 inv
Ministry of justice,CAFCASS,17/05/2022,Partnership Commissioned CS,HQ,Child Action Northwest,1109713,"41,600.00",Improving Child and Family Arrangements  CANW West April 2022 inv
Ministry of justice,CAFCASS,04/05/2022,Agency Practitioners,Op Service Areas,Community Resourcing t/a Retinue Solutions,1109078,"71,991.13",Agency Staff
Ministry of justice,CAFCASS,04/05/2022,Agency Practitioners,HQ,Community Resourcing t/a Retinue Solutions,1109078,"3,480.96",Agency Staff
Ministry of justice,CAFCASS,04/05/2022,Temp Business Support Staff,HQ,Community Resourcing t/a Retinue Solutions,1109078,"1,911.91",Call Centre staff
Ministry of justice,CAFCASS,04/05/2022,Temp Business Support Staff,HQ,Community Resourcing t/a Retinue Solutions,1109078,626.63,Central Improvement Team staff
Ministry of justice,CAFCASS,04/05/2022,Agency Practitioners,Op Service Areas,Community Resourcing t/a Retinue Solutions,1109140,"37,073.47",Agency Staff
Ministry of justice,CAFCASS,04/05/2022,Agency Practitioners,HQ,Community Resourcing t/a Retinue Solutions,1109140,"-2,173.89",Agency Staff
Ministry of justice,CAFCASS,04/05/2022,Temp Business Support Staff,HQ,Community Resourcing t/a Retinue Solutions,1109140,483.82,Central Improvement Team staff
Ministry of justice,CAFCASS,04/05/2022,Temp Business Support Staff,HQ,Community Resourcing t/a Retinue Solutions,1109140,553.32,Call Centre staff
Ministry of justice,CAFCASS,12/05/2022,Agency Practitioners,Op Service Areas,Community Resourcing t/a Retinue Solutions,1109499,"61,282.99",Agency Staff
Ministry of justice,CAFCASS,12/05/2022,Agency Practitioners,HQ,Community Resourcing t/a Retinue Solutions,1109499,"1,310.04",Agency Staff
Ministry of justice,CAFCASS,12/05/2022,Temp Business Support Staff,HQ,Community Resourcing t/a Retinue Solutions,1109499,"1,558.54",Call Centre staff
Ministry of justice,CAFCASS,17/05/2022,Agency Practitioners,Op Service Areas,Community Resourcing t/a Retinue Solutions,1109583,"57,082.16",Agency Staff
Ministry of justice,CAFCASS,17/05/2022,Agency Practitioners,HQ,Community Resourcing t/a Retinue Solutions,1109583,"2,925.76",Agency Staff
Ministry of justice,CAFCASS,17/05/2022,Temp Business Support Staff,HQ,Community Resourcing t/a Retinue Solutions,1109583,276.66,Call Centre staff
Ministry of justice,CAFCASS,24/05/2022,Agency Practitioners,HQ,Community Resourcing t/a Retinue Solutions,1110014,"1,310.04",Agency Staff
Ministry of justice,CAFCASS,24/05/2022,Agency Practitioners,Op Service Areas,Community Resourcing t/a Retinue Solutions,1110014,"54,294.00",Agency Staff
Ministry of justice,CAFCASS,24/05/2022,Temp Business Support Staff,HQ,Community Resourcing t/a Retinue Solutions,1110014,405.77,Call Centre staff
Ministry of justice,CAFCASS,27/05/2022,Agency Practitioners,Op Service Areas,Community Resourcing t/a Retinue Solutions,1110202,"46,150.79",Agency Staff
Ministry of justice,CAFCASS,27/05/2022,Agency Practitioners,HQ,Community Resourcing t/a Retinue Solutions,1110202,"1,310.04",Agency Staff
Ministry of justice,CAFCASS,27/05/2022,Temp Business Support Staff,HQ,Community Resourcing t/a Retinue Solutions,1110202,682.43,Call Centre staff
Ministry of justice,CAFCASS,12/05/2022,T&S - UK (Non-Taxable),Op Service Areas,Corporate Travel Mngmnt North t/a CTM,1109468,"10,915.38",Corporate Travel Management  March 22
Ministry of justice,CAFCASS,12/05/2022,T&S - UK (Non-Taxable),HQ,Corporate Travel Mngmnt North t/a CTM,1109468,"10,294.75",Corporate Travel Management  March 22
Ministry of justice,CAFCASS,12/05/2022,T&S - UK (Non-Taxable) hotel,Op Service Areas,Corporate Travel Mngmnt North t/a CTM,1109468,"2,880.78",Corporate Travel Management  hotel March 22
Ministry of justice,CAFCASS,12/05/2022,T&S - UK (Non-Taxable) hotel,HQ,Corporate Travel Mngmnt North t/a CTM,1109468,"3,981.43",Corporate Travel Management  hotel March 22
Ministry of justice,CAFCASS,06/05/2022,N-Cnt Computer Srvcs & Maint,HQ,Foehn Limited,1109230,"73,449.74",Cloud based contact centre
Ministry of justice,CAFCASS,30/05/2022,Other Fees/Services,HQ,Home Office,1110370,"127,826.88",PNC (Police National Computer) Charges 2022-23
Ministry of justice,CAFCASS,13/05/2022,Cleaning,HQ,ISS FS Ltd t/a ISS Facility Services Ltd,1109618,"26,106.13",Cleaning services Mar 2022
Ministry of justice,CAFCASS,26/05/2022,Building Fit Out & Enhancement,HQ,Lancer Scott Ltd,1110157,"76,601.42",Plymouth - Works - Payment 3
Ministry of justice,CAFCASS,30/05/2022,System licence fees,HQ,Microsoft Limited,1110406,"93,888.00",Unified Support
Ministry of justice,CAFCASS,17/05/2022,Rates,HQ,Ministry of Justice,1109771,"4,643.31",Chelmsford Rates
Ministry of justice,CAFCASS,17/05/2022,Rent,HQ,Ministry of Justice,1109771,"15,834.06",Chelmsford Rent
Ministry of justice,CAFCASS,17/05/2022,Service Charge,HQ,Ministry of Justice,1109771,"14,302.48",Chelmsford Serv Chg
Ministry of justice,CAFCASS,24/05/2022,Recruitment,HQ,Net-Work (2001) t/a network recruitment,1110049,"30,622.54",Networx recruitment system
Ministry of justice,CAFCASS,06/05/2022,Other IT contracted costs,HQ,Specialist Computer Centres Plc,1109171,"40,471.20",Laptops & Sleeves
Ministry of justice,CAFCASS,18/05/2022,Partnership Commissioned CS,HQ,Swanstaff Recruitment Limited,1109775,"28,125.00",Improving Child and Family Arrangements  Swan Family SE April 2022 inv
Ministry of justice,CAFCASS,09/05/2022,Rent,HQ,University of Warwick Science Park,1109253,"36,263.80",National Business Centre Rent
Ministry of justice,CAFCASS,09/05/2022,Service Charge,HQ,University of Warwick Science Park,1109253,"3,826.13",National Business Centre Serv Chg
Ministry of justice,CAFCASS,09/05/2022,Version 1,HQ,Version 1 Solutions Limited,1109307,"27,681.60",Technology services
Ministry of justice,CAFCASS,16/05/2022,Version 1,HQ,Version 1 Solutions Limited,1109655,"96,390.00",Technology services
